[Event "Titled Tuesday Blitz August 3 2021"]
[White "El Arousy, Abdul Hameed"]
[Black "Gontcharov, Vladislav"]
[WhiteFideId "10600086"]
[BlackFideId "4123492"]
[WhiteElo "2216"]
[BlackElo "2503"]
[Result "1-0"]
[Round "06"]
[TimeControl "180+1"]
[Date "2021.08.03"]
[WhiteClock "0:00:12"]
[BlackClock "0:00:02"]

1. e4 {[%clk 0:03:00]}  e6 {[%clk 0:02:58]} 2. d4 {[%clk 0:03:01]}  d5 {[%clk 0:02:58]} 3. e5 {[%clk 0:03:01]}  c5 {[%clk 0:02:58]} 4. c3 {[%clk 0:03:02]}  Nc6 {[%clk 0:02:58]} 5. Nf3 {[%clk 0:03:02]}  Qb6 {[%clk 0:02:58]} 6. Bd3 {[%clk 0:03:02]}  Bd7 {[%clk 0:02:57]} 7. dxc5 {[%clk 0:02:43]}  Bxc5 {[%clk 0:02:55]} 8. Qe2 {[%clk 0:02:43]}  a5 {[%clk 0:02:51]} 9. b3 {[%clk 0:02:36]}  Nge7 {[%clk 0:02:45]} 10. Na3 {[%clk 0:02:36]}  Ng6 {[%clk 0:02:42]} 11. O-O {[%clk 0:02:31]}  O-O {[%clk 0:02:40]} 12. Rb1 {[%clk 0:02:24]}  Be7 {[%clk 0:02:07]} 13. Nb5 {[%clk 0:02:10]}  Ncxe5 {[%clk 0:02:00]} 14. Nxe5 {[%clk 0:02:06]}  Nxe5 {[%clk 0:01:59]} 15. Qxe5 {[%clk 0:02:05]}  Bxb5 {[%clk 0:01:59]} 16. Be3 {[%clk 0:02:04]}  Qa6 {[%clk 0:01:45]} 17. Bxb5 {[%clk 0:01:58]}  Qxb5 {[%clk 0:01:45]} 18. c4 {[%clk 0:01:59]}  Qc6 {[%clk 0:01:39]} 19. cxd5 {[%clk 0:01:55]}  Qxd5 {[%clk 0:01:38]} 20. Qxd5 {[%clk 0:01:55]}  exd5 {[%clk 0:01:38]} 21. Rbd1 {[%clk 0:01:50]}  Rfd8 {[%clk 0:01:35]} 22. Rd2 {[%clk 0:01:50]}  a4 {[%clk 0:01:34]} 23. bxa4 {[%clk 0:01:47]}  Rxa4 {[%clk 0:01:33]} 24. Rfd1 {[%clk 0:01:48]}  h6 {[%clk 0:01:31]} 25. g3 {[%clk 0:01:41]}  Bf6 {[%clk 0:01:22]} 26. Rxd5 {[%clk 0:01:38]}  Rxd5 {[%clk 0:01:21]} 27. Rxd5 {[%clk 0:01:39]}  Rxa2 {[%clk 0:01:21]} 28. Rf5 {[%clk 0:01:32]}  Kh7 {[%clk 0:01:20]} 29. h4 {[%clk 0:01:32]}  Kg6 {[%clk 0:00:56]} 30. Rb5 {[%clk 0:01:27]}  Rb2 {[%clk 0:00:55]} 31. h5+ {[%clk 0:01:27]}  Kh7 {[%clk 0:00:55]} 32. Rb6 {[%clk 0:01:21]}  Rxb6 {[%clk 0:00:54]} 33. Bxb6 {[%clk 0:01:22]}  Kg8 {[%clk 0:00:54]} 34. Kg2 {[%clk 0:01:21]}  Kf8 {[%clk 0:00:54]} 35. Kf3 {[%clk 0:01:18]}  Ke7 {[%clk 0:00:54]} 36. Bc5+ {[%clk 0:01:16]}  Ke6 {[%clk 0:00:50]} 37. Ke4 {[%clk 0:01:13]}  b5 {[%clk 0:00:50]} 38. f3 {[%clk 0:01:09]}  Bc3 {[%clk 0:00:39]} 39. Kd3 {[%clk 0:01:05]}  Kd5 {[%clk 0:00:38]} 40. Bf8 {[%clk 0:01:02]}  b4 {[%clk 0:00:38]} 41. g4 {[%clk 0:00:59]}  Ke6 {[%clk 0:00:31]} 42. f4 {[%clk 0:00:58]}  f5 {[%clk 0:00:29]} 43. g5 {[%clk 0:00:57]}  hxg5 {[%clk 0:00:28]} 44. fxg5 {[%clk 0:00:58]}  Kf7 {[%clk 0:00:22]} 45. Bd6 {[%clk 0:00:55]}  g6 {[%clk 0:00:18]} 46. h6 {[%clk 0:00:53]}  Kg8 {[%clk 0:00:17]} 47. Bf4 {[%clk 0:00:52]}  Kf7 {[%clk 0:00:10]} 48. Kc2 {[%clk 0:00:50]}  Ke6 {[%clk 0:00:09]} 49. Kb3 {[%clk 0:00:48]}  Kd5 {[%clk 0:00:09]} 50. Bc7 {[%clk 0:00:40]}  Ke4 {[%clk 0:00:08]} 51. h7 {[%clk 0:00:37]}  f4 {[%clk 0:00:08]} 52. Bd8 {[%clk 0:00:33]}  f3 {[%clk 0:00:08]} 53. Bf6 {[%clk 0:00:32]}  f2 {[%clk 0:00:08]} 54. h8=Q {[%clk 0:00:31]}  f1=Q {[%clk 0:00:06]} 55. Bxc3 {[%clk 0:00:27]}  bxc3 {[%clk 0:00:05]} 56. Qe8+ {[%clk 0:00:25]}  Kf3 {[%clk 0:00:05]} 57. Qxg6 {[%clk 0:00:23]}  Qb5+ {[%clk 0:00:03]} 58. Kxc3 {[%clk 0:00:19]}  Qc5+ {[%clk 0:00:03]} 59. Kd2 {[%clk 0:00:15]}  Qe3+ {[%clk 0:00:02]} 60. Kc2 {[%clk 0:00:14]}  Qc5+ {[%clk 0:00:02]} 61. Kd2 {[%clk 0:00:12]} 1-0


[Site "https://www.chess.com"]

[Event "Titled Tuesday Blitz August 3 2021"]
[White "Eternauta2400"]
[Black "Makhnev, Denis"]
[BlackFideId "13707647"]
[WhiteElo "2530"]
[BlackElo "2537"]
[Result "0-1"]
[Round "06"]
[TimeControl "180+1"]
[Date "2021.08.03"]
[WhiteClock "0:00:29"]
[BlackClock "0:00:13"]

1. e4 {[%clk 0:03:00]}  c6 {[%clk 0:03:00]} 2. d4 {[%clk 0:02:56]}  d5 {[%clk 0:03:01]} 3. exd5 {[%clk 0:02:57]}  cxd5 {[%clk 0:03:01]} 4. c4 {[%clk 0:02:57]}  Nf6 {[%clk 0:03:00]} 5. Nc3 {[%clk 0:02:58]}  Nc6 {[%clk 0:03:00]} 6. Nf3 {[%clk 0:02:58]}  a6 {[%clk 0:03:01]} 7. cxd5 {[%clk 0:02:55]}  Nxd5 {[%clk 0:03:01]} 8. Bc4 {[%clk 0:02:54]}  Be6 {[%clk 0:02:59]} 9. Qe2 {[%clk 0:02:44]}  Rc8 {[%clk 0:02:51]} 10. Bb3 {[%clk 0:02:28]}  g6 {[%clk 0:02:44]} 11. O-O {[%clk 0:02:23]}  Bg7 {[%clk 0:02:45]} 12. Bg5 {[%clk 0:02:17]}  O-O {[%clk 0:02:41]} 13. Rfd1 {[%clk 0:02:04]}  Re8 {[%clk 0:02:40]} 14. Rac1 {[%clk 0:02:01]}  h6 {[%clk 0:02:09]} 15. Bh4 {[%clk 0:02:01]}  Qd7 {[%clk 0:01:41]} 16. Bg3 {[%clk 0:01:55]}  Red8 {[%clk 0:01:07]} 17. h3 {[%clk 0:01:50]}  Qe8 {[%clk 0:01:00]} 18. Kh2 {[%clk 0:01:47]}  Ncb4 {[%clk 0:00:45]} 19. Ne5 {[%clk 0:01:38]}  g5 {[%clk 0:00:43]} 20. Kg1 {[%clk 0:01:30]}  b5 {[%clk 0:00:34]} 21. Ne4 {[%clk 0:01:26]}  Nc7 {[%clk 0:00:25]} 22. Nc5 {[%clk 0:01:17]}  Bxb3 {[%clk 0:00:24]} 23. axb3 {[%clk 0:01:18]}  e6 {[%clk 0:00:20]} 24. h4 {[%clk 0:01:17]}  f6 {[%clk 0:00:19]} 25. Ned3 {[%clk 0:01:14]}  Nc6 {[%clk 0:00:18]} 26. hxg5 {[%clk 0:01:10]}  hxg5 {[%clk 0:00:19]} 27. Bxc7 {[%clk 0:01:05]}  Nxd4 {[%clk 0:00:15]} 28. Qg4 {[%clk 0:01:02]}  Rxc7 {[%clk 0:00:15]} 29. Nxa6 {[%clk 0:00:59]}  Rxc1 {[%clk 0:00:15]} 30. Rxc1 {[%clk 0:00:56]}  f5 {[%clk 0:00:15]} 31. Qd1 {[%clk 0:00:51]}  e5 {[%clk 0:00:14]} 32. Nab4 {[%clk 0:00:46]}  e4 {[%clk 0:00:13]} 33. Nc5 {[%clk 0:00:42]}  Nf3+ {[%clk 0:00:14]} 34. gxf3 {[%clk 0:00:43]}  Rxd1+ {[%clk 0:00:14]} 35. Rxd1 {[%clk 0:00:43]}  exf3 {[%clk 0:00:14]} 36. Nbd3 {[%clk 0:00:36]}  Bd4 {[%clk 0:00:13]} 37. Re1 {[%clk 0:00:29]}  Qh5 {[%clk 0:00:13]} 0-1


[Site "https://www.chess.com"]

[Event "Titled Tuesday Blitz August 3 2021"]
[White "Farahat, Ali"]
[Black "Samadov, Read"]
[WhiteFideId "10600507"]
[BlackFideId "13417444"]
[WhiteElo "2321"]
[BlackElo "2084"]
[Result "1/2-1/2"]
[Round "06"]
[TimeControl "180+1"]
[Date "2021.08.03"]
[WhiteClock "0:00:46"]
[BlackClock "0:00:04"]

1. e4 {[%clk 0:03:00]}  c5 {[%clk 0:02:59]} 2. Nf3 {[%clk 0:03:00]}  d6 {[%clk 0:02:59]} 3. c3 {[%clk 0:03:01]}  Nf6 {[%clk 0:02:58]} 4. h3 {[%clk 0:03:01]}  Nbd7 {[%clk 0:02:57]} 5. Bd3 {[%clk 0:03:01]}  b6 {[%clk 0:02:55]} 6. Bc2 {[%clk 0:03:01]}  Bb7 {[%clk 0:02:55]} 7. Qe2 {[%clk 0:03:02]}  e5 {[%clk 0:02:54]} 8. O-O {[%clk 0:03:01]}  Be7 {[%clk 0:02:52]} 9. d4 {[%clk 0:03:01]}  cxd4 {[%clk 0:02:47]} 10. cxd4 {[%clk 0:03:02]}  O-O {[%clk 0:02:46]} 11. Nc3 {[%clk 0:03:02]}  a6 {[%clk 0:02:44]} 12. Rd1 {[%clk 0:02:59]}  Qc7 {[%clk 0:02:40]} 13. Bg5 {[%clk 0:02:58]}  b5 {[%clk 0:02:34]} 14. Rac1 {[%clk 0:02:57]}  h6 {[%clk 0:02:27]} 15. Bh4 {[%clk 0:02:54]}  Rac8 {[%clk 0:02:22]} 16. Bb3 {[%clk 0:02:54]}  Qb8 {[%clk 0:02:22]} 17. dxe5 {[%clk 0:02:46]}  Nxe5 {[%clk 0:02:17]} 18. Nd4 {[%clk 0:02:41]}  b4 {[%clk 0:02:10]} 19. Nf5 {[%clk 0:02:41]}  Bd8 {[%clk 0:01:57]} 20. Bxf6 {[%clk 0:02:31]}  Bxf6 {[%clk 0:01:55]} 21. Nd5 {[%clk 0:02:29]}  Bxd5 {[%clk 0:01:49]} 22. Rxc8 {[%clk 0:02:20]}  Rxc8 {[%clk 0:01:48]} 23. Bxd5 {[%clk 0:02:20]}  Qb6 {[%clk 0:01:36]} 24. Nxd6 {[%clk 0:02:17]}  Qxd6 {[%clk 0:01:24]} 25. Bxf7+ {[%clk 0:02:16]}  Nxf7 {[%clk 0:01:25]} 26. Rxd6 {[%clk 0:02:16]}  Nxd6 {[%clk 0:01:26]} 27. Qxa6 {[%clk 0:02:16]}  Rc1+ {[%clk 0:01:17]} 28. Kh2 {[%clk 0:02:16]}  Be5+ {[%clk 0:01:18]} 29. g3 {[%clk 0:02:16]}  Rc2 {[%clk 0:01:16]} 30. Qd3 {[%clk 0:01:58]}  Rxf2+ {[%clk 0:01:00]} 31. Kg1 {[%clk 0:01:57]}  Rf7 {[%clk 0:00:55]} 32. Qd5 {[%clk 0:01:50]}  Bxg3 {[%clk 0:00:54]} 33. e5 {[%clk 0:01:51]}  Ne8 {[%clk 0:00:41]} 34. Qe6 {[%clk 0:01:27]}  Kf8 {[%clk 0:00:40]} 35. a4 {[%clk 0:01:25]}  bxa3 {[%clk 0:00:39]} 36. bxa3 {[%clk 0:01:25]}  Re7 {[%clk 0:00:39]} 37. Qf5+ {[%clk 0:01:24]}  Kg8 {[%clk 0:00:39]} 38. e6 {[%clk 0:01:24]}  Bd6 {[%clk 0:00:34]} 39. a4 {[%clk 0:01:17]}  Nc7 {[%clk 0:00:34]} 40. a5 {[%clk 0:01:13]}  Rxe6 {[%clk 0:00:33]} 41. a6 {[%clk 0:01:06]}  Re5 {[%clk 0:00:30]} 42. Qd7 {[%clk 0:01:03]}  Rd5 {[%clk 0:00:23]} 43. Qc6 {[%clk 0:01:01]}  Rd1+ {[%clk 0:00:16]} 44. Kg2 {[%clk 0:01:01]}  Nxa6 {[%clk 0:00:08]} 45. Qc8+ {[%clk 0:00:56]}  Bf8 {[%clk 0:00:06]} 46. Qc4+ {[%clk 0:00:54]}  Kh8 {[%clk 0:00:06]} 47. Qxa6 {[%clk 0:00:54]}  Rd8 {[%clk 0:00:06]} 48. Qe6 {[%clk 0:00:52]}  Rb8 {[%clk 0:00:05]} 49. Qd7 {[%clk 0:00:51]}  Kg8 {[%clk 0:00:04]} 50. Qd5+ {[%clk 0:00:51]}  Kh8 {[%clk 0:00:04]} 51. h4 {[%clk 0:00:52]}  Re8 {[%clk 0:00:04]} 52. h5 {[%clk 0:00:51]}  Rb8 {[%clk 0:00:02]} 53. Qc6 {[%clk 0:00:51]}  Rb2+ {[%clk 0:00:03]} 54. Kf3 {[%clk 0:00:51]}  Rb8 {[%clk 0:00:03]} 55. Ke4 {[%clk 0:00:51]}  Be7 {[%clk 0:00:03]} 56. Kf5 {[%clk 0:00:50]}  Bf6 {[%clk 0:00:03]} 57. Kg6 {[%clk 0:00:50]}  Rf8 {[%clk 0:00:04]} 58. Qd6 {[%clk 0:00:49]}  Rg8 {[%clk 0:00:04]} 59. Kf7 {[%clk 0:00:49]}  Ra8 {[%clk 0:00:03]} 60. Kg6 {[%clk 0:00:49]}  Rg8 {[%clk 0:00:02]} 61. Qc6 {[%clk 0:00:48]}  Rb8 {[%clk 0:00:03]} 62. Qc7 {[%clk 0:00:48]}  Rg8 {[%clk 0:00:03]} 63. Qb7 {[%clk 0:00:47]}  Rf8 {[%clk 0:00:03]} 64. Qc6 {[%clk 0:00:47]}  Rg8 {[%clk 0:00:04]} 65. Qb7 {[%clk 0:00:46]} 1/2-1/2


[Site "https://www.chess.com"]

[Event "Titled Tuesday Blitz August 3 2021"]
[White "Fayzullaev, Akmal"]
[Black "Turayev, Shahruh"]
[WhiteFideId "14200554"]
[BlackFideId "14003856"]
[WhiteElo "2264"]
[BlackElo "2470"]
[Result "1-0"]
[Round "06"]
[TimeControl "180+1"]
[Date "2021.08.03"]
[WhiteClock "0:00:50"]
[BlackClock "0:00:09"]

1. d4 {[%clk 0:03:00]}  c5 {[%clk 0:02:57]} 2. d5 {[%clk 0:03:00]}  Nf6 {[%clk 0:02:58]} 3. Nc3 {[%clk 0:02:59]}  g6 {[%clk 0:02:57]} 4. e4 {[%clk 0:02:58]}  d6 {[%clk 0:02:57]} 5. f4 {[%clk 0:02:56]}  Bg7 {[%clk 0:02:56]} 6. Bb5+ {[%clk 0:02:56]}  Nfd7 {[%clk 0:02:56]} 7. Nf3 {[%clk 0:02:54]}  O-O {[%clk 0:02:54]} 8. a4 {[%clk 0:02:54]}  Na6 {[%clk 0:02:54]} 9. O-O {[%clk 0:02:53]}  Nc7 {[%clk 0:02:54]} 10. Bc4 {[%clk 0:02:51]}  a6 {[%clk 0:02:50]} 11. Kh1 {[%clk 0:02:41]}  Rb8 {[%clk 0:02:50]} 12. a5 {[%clk 0:02:40]}  b5 {[%clk 0:02:49]} 13. axb6 {[%clk 0:02:41]}  Nxb6 {[%clk 0:02:49]} 14. Be2 {[%clk 0:02:42]}  Bd7 {[%clk 0:02:50]} 15. h3 {[%clk 0:02:24]}  Bb5 {[%clk 0:02:48]} 16. Ra2 {[%clk 0:02:19]}  Bxe2 {[%clk 0:02:43]} 17. Nxe2 {[%clk 0:02:20]}  f5 {[%clk 0:02:29]} 18. exf5 {[%clk 0:01:52]}  Rxf5 {[%clk 0:02:28]} 19. Ng3 {[%clk 0:01:45]}  Rxd5 {[%clk 0:02:21]} 20. Qe2 {[%clk 0:01:46]}  Qd7 {[%clk 0:02:11]} 21. c4 {[%clk 0:01:45]}  Rf5 {[%clk 0:01:47]} 22. Nxf5 {[%clk 0:01:45]}  Qxf5 {[%clk 0:01:48]} 23. Qxe7 {[%clk 0:01:44]}  Qd3 {[%clk 0:01:18]} 24. Re1 {[%clk 0:01:29]}  Re8 {[%clk 0:00:33]} 25. Qxc7 {[%clk 0:01:27]}  Rxe1+ {[%clk 0:00:34]} 26. Nxe1 {[%clk 0:01:27]}  Qf1+ {[%clk 0:00:34]} 27. Kh2 {[%clk 0:01:28]}  Qxe1 {[%clk 0:00:35]} 28. Qb8+ {[%clk 0:01:07]}  Kf7 {[%clk 0:00:34]} 29. Qb7+ {[%clk 0:01:06]}  Kg8 {[%clk 0:00:18]} 30. Qb8+ {[%clk 0:00:54]}  Kf7 {[%clk 0:00:18]} 31. Rxa6 {[%clk 0:00:51]}  Bd4 {[%clk 0:00:13]} 32. Ra7+ {[%clk 0:00:50]}  Kf6 {[%clk 0:00:09]} 33. Qf8+ {[%clk 0:00:50]} 1-0


[Site "https://www.chess.com"]

[Event "Titled Tuesday Blitz August 3 2021"]
[White "Firat, Burak"]
[Black "Babiy, Olga"]
[WhiteFideId "6305881"]
[BlackFideId "14117258"]
[WhiteElo "2531"]
[BlackElo "2230"]
[Result "1-0"]
[Round "06"]
[TimeControl "180+1"]
[Date "2021.08.03"]
[WhiteClock "0:01:16"]
[BlackClock "0:00:31"]

1. Nf3 {[%clk 0:03:00]}  d5 {[%clk 0:02:59]} 2. c4 {[%clk 0:03:01]}  e6 {[%clk 0:02:55]} 3. g3 {[%clk 0:03:01]}  dxc4 {[%clk 0:02:53]} 4. Bg2 {[%clk 0:03:02]}  Nd7 {[%clk 0:02:52]} 5. O-O {[%clk 0:03:03]}  Nb6 {[%clk 0:02:49]} 6. Ne5 {[%clk 0:03:03]}  Qd4 {[%clk 0:02:41]} 7. Nf3 {[%clk 0:03:03]}  Qd8 {[%clk 0:02:40]} 8. Na3 {[%clk 0:03:03]}  Bxa3 {[%clk 0:02:38]} 9. bxa3 {[%clk 0:03:04]}  Nf6 {[%clk 0:02:32]} 10. Bb2 {[%clk 0:03:04]}  O-O {[%clk 0:02:31]} 11. Qc2 {[%clk 0:03:00]}  Bd7 {[%clk 0:02:31]} 12. Ng5 {[%clk 0:02:49]}  Ba4 {[%clk 0:02:01]} 13. Qb1 {[%clk 0:02:48]}  Re8 {[%clk 0:01:30]} 14. Bxf6 {[%clk 0:02:44]}  Qxf6 {[%clk 0:01:30]} 15. Qxh7+ {[%clk 0:02:44]}  Kf8 {[%clk 0:01:31]} 16. h4 {[%clk 0:02:31]}  Rad8 {[%clk 0:01:18]} 17. Qe4 {[%clk 0:02:17]}  Qf5 {[%clk 0:01:11]} 18. Qxb7 {[%clk 0:02:11]}  Rxd2 {[%clk 0:01:11]} 19. Qxc7 {[%clk 0:02:02]}  Rxe2 {[%clk 0:01:11]} 20. Qxa7 {[%clk 0:02:01]}  Rb2 {[%clk 0:01:04]} 21. Be4 {[%clk 0:01:56]}  Nc8 {[%clk 0:00:43]} 22. Qxa4 {[%clk 0:01:49]}  Qc5 {[%clk 0:00:43]} 23. Rab1 {[%clk 0:01:33]}  Rxb1 {[%clk 0:00:37]} 24. Rxb1 {[%clk 0:01:34]}  Nd6 {[%clk 0:00:38]} 25. Bg2 {[%clk 0:01:28]}  c3 {[%clk 0:00:37]} 26. Rc1 {[%clk 0:01:24]}  Rb8 {[%clk 0:00:32]} 27. Qf4 {[%clk 0:01:16]}  Rb2 {[%clk 0:00:31]} 28. Nxe6+ {[%clk 0:01:16]} 1-0


[Site "https://www.chess.com"]

[Event "Titled Tuesday Blitz August 3 2021"]
[White "Galyas, Miklos"]
[Black "Shimelkov, Vasiliy"]
[WhiteFideId "707244"]
[BlackFideId "13701630"]
[WhiteElo "2409"]
[BlackElo "2073"]
[Result "0-1"]
[Round "06"]
[TimeControl "180+1"]
[Date "2021.08.03"]
[WhiteClock "0:01:50"]
[BlackClock "0:02:13"]

1. c4 {[%clk 0:03:00]}  c5 {[%clk 0:02:59]} 2. g3 {[%clk 0:03:00]}  g6 {[%clk 0:02:59]} 3. Bg2 {[%clk 0:03:00]}  Bg7 {[%clk 0:02:59]} 4. Nc3 {[%clk 0:03:00]}  Nc6 {[%clk 0:02:58]} 5. Nf3 {[%clk 0:02:58]}  e6 {[%clk 0:02:58]} 6. h4 {[%clk 0:02:58]}  h5 {[%clk 0:02:57]} 7. d4 {[%clk 0:02:56]}  cxd4 {[%clk 0:02:54]} 8. Nb5 {[%clk 0:02:56]}  d5 {[%clk 0:02:54]} 9. cxd5 {[%clk 0:02:54]}  Qa5+ {[%clk 0:02:49]} 10. Bd2 {[%clk 0:02:46]}  Qxb5 {[%clk 0:02:48]} 11. dxc6 {[%clk 0:02:47]}  bxc6 {[%clk 0:02:46]} 12. O-O {[%clk 0:02:46]}  Ne7 {[%clk 0:02:45]} 13. Bg5 {[%clk 0:02:44]}  Nf5 {[%clk 0:02:43]} 14. Rc1 {[%clk 0:02:43]}  Bb7 {[%clk 0:02:41]} 15. b3 {[%clk 0:02:42]}  O-O {[%clk 0:02:39]} 16. Nd2 {[%clk 0:02:37]}  c5 {[%clk 0:02:35]} 17. Ne4 {[%clk 0:02:36]}  Rac8 {[%clk 0:02:25]} 18. Nf6+ {[%clk 0:02:00]}  Bxf6 {[%clk 0:02:23]} 19. Bxf6 {[%clk 0:01:59]}  Bxg2 {[%clk 0:02:22]} 20. Kxg2 {[%clk 0:01:59]}  c4 {[%clk 0:02:18]} 21. bxc4 {[%clk 0:01:56]}  Rxc4 {[%clk 0:02:18]} 22. Qd3 {[%clk 0:01:50]}  Qc6+ {[%clk 0:02:13]} 0-1


[Site "https://www.chess.com"]

[Event "Titled Tuesday Blitz August 3 2021"]
[White "Harshavardhan G B"]
[Black "Devaev, Alexander"]
[WhiteFideId "25059009"]
[BlackFideId "4169395"]
[WhiteElo "1825"]
[BlackElo "2185"]
[Result "1-0"]
[Round "06"]
[TimeControl "180+1"]
[Date "2021.08.03"]
[WhiteClock "0:01:46"]
[BlackClock "0:00:56"]

1. e4 {[%clk 0:03:00]}  c6 {[%clk 0:02:57]} 2. d4 {[%clk 0:02:59]}  d5 {[%clk 0:02:57]} 3. exd5 {[%clk 0:03:00]}  cxd5 {[%clk 0:02:58]} 4. c4 {[%clk 0:03:01]}  Nf6 {[%clk 0:02:57]} 5. Nc3 {[%clk 0:03:00]}  e6 {[%clk 0:02:58]} 6. Nf3 {[%clk 0:02:58]}  Bb4 {[%clk 0:02:57]} 7. cxd5 {[%clk 0:02:54]}  Nxd5 {[%clk 0:02:57]} 8. Bd2 {[%clk 0:02:53]}  Nc6 {[%clk 0:02:57]} 9. Bd3 {[%clk 0:02:49]}  O-O {[%clk 0:02:58]} 10. O-O {[%clk 0:02:48]}  Be7 {[%clk 0:02:58]} 11. Re1 {[%clk 0:02:46]}  Bf6 {[%clk 0:02:58]} 12. Ne4 {[%clk 0:02:29]}  Nce7 {[%clk 0:02:56]} 13. Rc1 {[%clk 0:02:19]}  Ng6 {[%clk 0:02:52]} 14. Nxf6+ {[%clk 0:02:10]}  Nxf6 {[%clk 0:02:52]} 15. Bg5 {[%clk 0:02:09]}  Qd6 {[%clk 0:02:52]} 16. Ne5 {[%clk 0:02:05]}  Nd5 {[%clk 0:02:06]} 17. Qh5 {[%clk 0:01:59]}  Bd7 {[%clk 0:01:51]} 18. Re4 {[%clk 0:01:57]}  Rac8 {[%clk 0:01:14]} 19. Rce1 {[%clk 0:01:48]}  Nf6 {[%clk 0:00:55]} 20. Bxf6 {[%clk 0:01:46]}  gxf6 {[%clk 0:00:56]} 21. Rh4 {[%clk 0:01:46]} 1-0


[Site "https://www.chess.com"]

[Event "Titled Tuesday Blitz August 3 2021"]
[White "Hoffmann, Asa"]
[Black "Tristan, Leonardo"]
[WhiteFideId "2001470"]
[BlackFideId "113816"]
[WhiteElo "2117"]
[BlackElo "2404"]
[Result "0-1"]
[Round "06"]
[TimeControl "180+1"]
[Date "2021.08.03"]
[WhiteClock "0:00:01"]
[BlackClock "0:00:02"]

1. d4 {[%clk 0:02:54]}  d5 {[%clk 0:02:58]} 2. Bg5 {[%clk 0:02:53]}  Nd7 {[%clk 0:02:57]} 3. c4 {[%clk 0:02:52]}  dxc4 {[%clk 0:02:36]} 4. Nc3 {[%clk 0:02:49]}  c6 {[%clk 0:02:32]} 5. e4 {[%clk 0:02:48]}  Qb6 {[%clk 0:02:25]} 6. Bxc4 {[%clk 0:02:44]}  e5 {[%clk 0:02:17]} 7. d5 {[%clk 0:01:57]}  Bc5 {[%clk 0:01:56]} 8. Qd2 {[%clk 0:01:48]}  Ngf6 {[%clk 0:01:43]} 9. Nf3 {[%clk 0:01:44]}  Bb4 {[%clk 0:01:37]} 10. dxc6 {[%clk 0:01:21]}  bxc6 {[%clk 0:01:34]} 11. Qe2 {[%clk 0:01:14]}  Nc5 {[%clk 0:01:18]} 12. Bxf6 {[%clk 0:01:08]}  gxf6 {[%clk 0:01:17]} 13. O-O {[%clk 0:01:08]}  Bg4 {[%clk 0:01:09]} 14. Rac1 {[%clk 0:01:05]}  Ne6 {[%clk 0:01:06]} 15. Bxe6 {[%clk 0:01:03]}  fxe6 {[%clk 0:01:07]} 16. Qc4 {[%clk 0:00:59]}  Rc8 {[%clk 0:00:43]} 17. h3 {[%clk 0:00:56]}  Bxf3 {[%clk 0:00:24]} 18. Qxe6+ {[%clk 0:00:54]}  Kd8 {[%clk 0:00:19]} 19. Nd5 {[%clk 0:00:43]}  Re8 {[%clk 0:00:03]} 20. Qxf6+ {[%clk 0:00:25]}  Be7 {[%clk 0:00:03]} 21. Nxe7 {[%clk 0:00:21]}  c5 {[%clk 0:00:01]} 22. Qxb6+ {[%clk 0:00:19]}  axb6 {[%clk 0:00:01]} 23. Nxc8 {[%clk 0:00:15]}  Rg8 {[%clk 0:00:02]} 24. g3 {[%clk 0:00:14]}  Kxc8 {[%clk 0:00:02]} 25. Rfd1 {[%clk 0:00:12]}  Kc7 {[%clk 0:00:02]} 26. Rd5 {[%clk 0:00:12]}  Re8 {[%clk 0:00:02]} 27. Kf1 {[%clk 0:00:11]}  Bxe4 {[%clk 0:00:02]} 28. Rd2 {[%clk 0:00:10]}  Kc6 {[%clk 0:00:03]} 29. Re1 {[%clk 0:00:10]}  Bf5 {[%clk 0:00:03]} 30. Rde2 {[%clk 0:00:10]}  Bd3 {[%clk 0:00:02]} 31. f4 {[%clk 0:00:08]}  e4 {[%clk 0:00:02]} 32. Kf2 {[%clk 0:00:08]}  Bxe2 {[%clk 0:00:02]} 33. Rxe2 {[%clk 0:00:08]}  Kd5 {[%clk 0:00:03]} 34. g4 {[%clk 0:00:08]}  Kd4 {[%clk 0:00:03]} 35. Rd2+ {[%clk 0:00:07]}  Kc4 {[%clk 0:00:03]} 36. Ke3 {[%clk 0:00:07]}  b5 {[%clk 0:00:04]} 37. f5 {[%clk 0:00:07]}  h6 {[%clk 0:00:03]} 38. h4 {[%clk 0:00:07]}  Rg8 {[%clk 0:00:04]} 39. Rg2 {[%clk 0:00:07]}  Kd5 {[%clk 0:00:03]} 40. Kf4 {[%clk 0:00:06]}  e3 {[%clk 0:00:03]} 41. g5 {[%clk 0:00:06]}  hxg5+ {[%clk 0:00:03]} 42. hxg5 {[%clk 0:00:06]}  Re8 {[%clk 0:00:04]} 43. Re2 {[%clk 0:00:04]}  Kd4 {[%clk 0:00:05]} 44. f6 {[%clk 0:00:04]}  Kd3 {[%clk 0:00:05]} 45. f7 {[%clk 0:00:03]}  Re4+ {[%clk 0:00:03]} 46. Kf3 {[%clk 0:00:02]}  Rh4 {[%clk 0:00:02]} 47. Rxe3+ {[%clk 0:00:01]}  Kd2 {[%clk 0:00:02]} 0-1


[Site "https://www.chess.com"]

[Event "Titled Tuesday Blitz August 3 2021"]
[White "Ibrahimli, Murad"]
[Black "GrafLermontov"]
[WhiteFideId "13410229"]
[WhiteElo "2109"]
[BlackElo "2520"]
[Result "1-0"]
[Round "06"]
[TimeControl "180+1"]
[Date "2021.08.03"]
[WhiteClock "0:01:50"]
[BlackClock "0:00:06"]

1. d4 {[%clk 0:03:00]}  Nf6 {[%clk 0:02:59]} 2. c4 {[%clk 0:03:01]}  g6 {[%clk 0:03:00]} 3. Nc3 {[%clk 0:03:01]}  d5 {[%clk 0:03:01]} 4. cxd5 {[%clk 0:03:00]}  Nxd5 {[%clk 0:03:01]} 5. e4 {[%clk 0:03:00]}  Nxc3 {[%clk 0:03:02]} 6. bxc3 {[%clk 0:03:01]}  Bg7 {[%clk 0:03:02]} 7. Be3 {[%clk 0:03:00]}  c5 {[%clk 0:03:02]} 8. Nf3 {[%clk 0:03:01]}  Qa5 {[%clk 0:03:00]} 9. Qd2 {[%clk 0:03:01]}  Nc6 {[%clk 0:02:57]} 10. Rb1 {[%clk 0:02:58]}  cxd4 {[%clk 0:02:54]} 11. cxd4 {[%clk 0:02:56]}  Qxd2+ {[%clk 0:02:54]} 12. Kxd2 {[%clk 0:02:57]}  O-O {[%clk 0:02:54]} 13. d5 {[%clk 0:02:54]}  Rd8 {[%clk 0:02:48]} 14. Ke1 {[%clk 0:02:53]}  Ne5 {[%clk 0:02:40]} 15. Nxe5 {[%clk 0:02:42]}  Bxe5 {[%clk 0:02:40]} 16. f4 {[%clk 0:02:43]}  Bg7 {[%clk 0:02:35]} 17. Bc4 {[%clk 0:02:41]}  b6 {[%clk 0:02:07]} 18. Kf2 {[%clk 0:02:32]}  e6 {[%clk 0:02:06]} 19. Rhc1 {[%clk 0:02:24]}  Rb8 {[%clk 0:01:28]} 20. Bb3 {[%clk 0:02:08]}  Rb7 {[%clk 0:00:59]} 21. Rxc8 {[%clk 0:02:00]}  Rxc8 {[%clk 0:00:56]} 22. dxe6 {[%clk 0:02:01]}  Rbc7 {[%clk 0:00:18]} 23. exf7+ {[%clk 0:02:01]}  Rxf7 {[%clk 0:00:16]} 24. Rd1 {[%clk 0:02:00]}  Rc7 {[%clk 0:00:12]} 25. Rd8+ {[%clk 0:01:59]}  Bf8 {[%clk 0:00:12]} 26. e5 {[%clk 0:01:59]}  Kg7 {[%clk 0:00:11]} 27. Bxf7 {[%clk 0:01:59]}  Kxf7 {[%clk 0:00:12]} 28. Kf3 {[%clk 0:01:57]}  Be7 {[%clk 0:00:11]} 29. Ra8 {[%clk 0:01:57]}  Ke6 {[%clk 0:00:08]} 30. g4 {[%clk 0:01:52]}  Rc3 {[%clk 0:00:08]} 31. Ke4 {[%clk 0:01:49]}  b5 {[%clk 0:00:07]} 32. f5+ {[%clk 0:01:49]}  gxf5+ {[%clk 0:00:07]} 33. gxf5+ {[%clk 0:01:50]}  Kf7 {[%clk 0:00:06]} 34. e6+ {[%clk 0:01:50]} 1-0


[Site "https://www.chess.com"]